[Event "Titled Tuesday Blitz July 25 Early 2023"]
[White "Koellner, Ruben Gideon"]
[Black "Salman, Pavel"]
[WhiteFideId "12993093"]
[BlackFideId "24153753"]
[WhiteElo "2711"]
[BlackElo "2519"]
[Result "1/2-1/2"]
[Round "10"]
[TimeControl "180+2"]
[Date "2023.07.25"]
[WhiteClock "0:01:06"]
[BlackClock "0:00:14"]
[Board "54"]

1. d4 {[%clk 0:03:00]}  Nf6 {[%clk 0:02:57]} 2. Nf3 {[%clk 0:03:00]}  c5 {[%clk 0:02:55]} 3. e3 {[%clk 0:03:00]}  g6 {[%clk 0:02:54]} 4. dxc5 {[%clk 0:02:59]}  Bg7 {[%clk 0:02:54]} 5. Nbd2 {[%clk 0:02:59]}  O-O {[%clk 0:02:53]} 6. Be2 {[%clk 0:02:58]}  Na6 {[%clk 0:02:53]} 7. Bxa6 {[%clk 0:02:56]}  bxa6 {[%clk 0:02:54]} 8. O-O {[%clk 0:02:57]}  Qc7 {[%clk 0:02:54]} 9. Nb3 {[%clk 0:02:57]}  Bb7 {[%clk 0:02:51]} 10. Rb1 {[%clk 0:02:50]}  Ne4 {[%clk 0:02:51]} 11. Qd3 {[%clk 0:02:43]}  a5 {[%clk 0:02:49]} 12. a4 {[%clk 0:02:43]}  Nxc5 {[%clk 0:02:35]} 13. Nxc5 {[%clk 0:02:43]}  Qxc5 {[%clk 0:02:36]} 14. Qxd7 {[%clk 0:02:43]}  Bxf3 {[%clk 0:02:36]} 15. gxf3 {[%clk 0:02:43]}  Qxc2 {[%clk 0:02:30]} 16. Ra1 {[%clk 0:02:43]}  Bf6 {[%clk 0:02:23]} 17. Qd2 {[%clk 0:02:32]}  Qf5 {[%clk 0:02:20]} 18. f4 {[%clk 0:02:31]}  Rfd8 {[%clk 0:02:17]} 19. Qe2 {[%clk 0:02:31]}  Rac8 {[%clk 0:02:12]} 20. Re1 {[%clk 0:02:30]}  Rc2 {[%clk 0:02:10]} 21. Qf3 {[%clk 0:02:30]}  Bxb2 {[%clk 0:02:02]} 22. Bxb2 {[%clk 0:02:29]}  Rxb2 {[%clk 0:02:03]} 23. Red1 {[%clk 0:02:29]}  Rdd2 {[%clk 0:01:57]} 24. Rxd2 {[%clk 0:02:27]}  Rxd2 {[%clk 0:01:58]} 25. Rc1 {[%clk 0:02:26]}  Ra2 {[%clk 0:01:50]} 26. Rc4 {[%clk 0:02:17]}  Ra1+ {[%clk 0:01:36]} 27. Kg2 {[%clk 0:02:17]}  h5 {[%clk 0:01:34]} 28. h3 {[%clk 0:02:08]}  Qb1 {[%clk 0:01:32]} 29. Kg3 {[%clk 0:02:08]}  Qg1+ {[%clk 0:01:28]} 30. Kh4 {[%clk 0:02:08]}  Kh7 {[%clk 0:01:10]} 31. Rc7 {[%clk 0:02:05]}  Kh6 {[%clk 0:00:45]} 32. Qg3 {[%clk 0:01:52]}  Qxg3+ {[%clk 0:00:41]} 33. Kxg3 {[%clk 0:01:53]}  Rxa4 {[%clk 0:00:36]} 34. Rxe7 {[%clk 0:01:53]}  Kg7 {[%clk 0:00:37]} 35. Rxa7 {[%clk 0:01:53]}  Kf6 {[%clk 0:00:36]} 36. e4 {[%clk 0:01:51]}  Rxe4 {[%clk 0:00:34]} 37. Rxa5 {[%clk 0:01:50]}  Rb4 {[%clk 0:00:35]} 38. Ra6+ {[%clk 0:01:50]}  Kg7 {[%clk 0:00:35]} 39. f3 {[%clk 0:01:49]}  Rc4 {[%clk 0:00:34]} 40. Ra5 {[%clk 0:01:49]}  Kf6 {[%clk 0:00:33]} 41. Ra6+ {[%clk 0:01:49]}  Kg7 {[%clk 0:00:31]} 42. Ra5 {[%clk 0:01:50]}  Rb4 {[%clk 0:00:31]} 43. f5 {[%clk 0:01:50]}  g5 {[%clk 0:00:27]} 44. Ra6 {[%clk 0:01:38]}  Rf4 {[%clk 0:00:25]} 45. Ra3 {[%clk 0:01:21]}  h4+ {[%clk 0:00:23]} 46. Kf2 {[%clk 0:01:21]}  Rxf5 {[%clk 0:00:24]} 47. Ke3 {[%clk 0:01:19]}  Re5+ {[%clk 0:00:24]} 48. Kf2 {[%clk 0:01:19]}  Rb5 {[%clk 0:00:24]} 49. Ra2 {[%clk 0:01:19]}  Kg6 {[%clk 0:00:24]} 50. Kg2 {[%clk 0:01:19]}  Kf5 {[%clk 0:00:24]} 51. Kf2 {[%clk 0:01:19]}  f6 {[%clk 0:00:24]} 52. Kg2 {[%clk 0:01:19]}  Kf4 {[%clk 0:00:24]} 53. Ra4+ {[%clk 0:01:18]}  Kf5 {[%clk 0:00:24]} 54. Ra2 {[%clk 0:01:17]}  Rb4 {[%clk 0:00:24]} 55. Kf2 {[%clk 0:01:15]}  Kf4 {[%clk 0:00:24]} 56. Rc2 {[%clk 0:01:15]}  f5 {[%clk 0:00:24]} 57. Ra2 {[%clk 0:01:15]}  Rc4 {[%clk 0:00:21]} 58. Rb2 {[%clk 0:01:15]}  Ra4 {[%clk 0:00:21]} 59. Rc2 {[%clk 0:01:15]}  Ra5 {[%clk 0:00:16]} 60. Rc4+ {[%clk 0:01:14]}  Ke5 {[%clk 0:00:17]} 61. Rc2 {[%clk 0:01:14]}  Kd4 {[%clk 0:00:17]} 62. Rd2+ {[%clk 0:01:14]}  Ke5 {[%clk 0:00:17]} 63. Re2+ {[%clk 0:01:13]}  Kf4 {[%clk 0:00:16]} 64. Rb2 {[%clk 0:01:14]}  Ra4 {[%clk 0:00:16]} 65. Rc2 {[%clk 0:01:15]}  g4 {[%clk 0:00:14]} 66. fxg4 {[%clk 0:01:14]}  fxg4 {[%clk 0:00:15]} 67. hxg4 {[%clk 0:01:15]}  Kxg4 {[%clk 0:00:15]} 68. Kg2 {[%clk 0:01:15]}  Rd4 {[%clk 0:00:14]} 69. Kh2 {[%clk 0:01:11]}  Re4 {[%clk 0:00:14]} 70. Rg2+ {[%clk 0:01:10]}  Kf4 {[%clk 0:00:15]} 71. Kh3 {[%clk 0:01:09]}  Kf3 {[%clk 0:00:14]} 72. Rg8 {[%clk 0:01:07]}  Re1 {[%clk 0:00:13]} 73. Rf8+ {[%clk 0:01:06]}  Ke2 {[%clk 0:00:14]} 74. Re8+ {[%clk 0:01:04]}  Kf1 {[%clk 0:00:14]} 75. Rxe1+ {[%clk 0:01:05]}  Kxe1 {[%clk 0:00:14]} 76. Kxh4 {[%clk 0:01:06]} 1/2-1/2


[Site "https://www.chess.com"]

[Event "Titled Tuesday Blitz July 25 Early 2023"]
[White "Marn, Jan"]
[Black "Oro, Faustino"]
[WhiteFideId "14619245"]
[BlackFideId "20000197"]
[WhiteElo "2449"]
[BlackElo "2822"]
[Result "1-0"]
[Round "10"]
[TimeControl "180+2"]
[Date "2023.07.25"]
[WhiteClock "0:00:05"]
[BlackClock "0:00:08"]
[Board "57"]

1. f4 {[%clk 0:03:00]}  d5 {[%clk 0:02:59]} 2. Nf3 {[%clk 0:03:00]}  Nf6 {[%clk 0:03:00]} 3. e3 {[%clk 0:03:00]}  c5 {[%clk 0:02:59]} 4. Be2 {[%clk 0:03:00]}  Nc6 {[%clk 0:02:59]} 5. O-O {[%clk 0:03:00]}  Bf5 {[%clk 0:02:55]} 6. d3 {[%clk 0:02:59]}  h6 {[%clk 0:02:55]} 7. a4 {[%clk 0:02:58]}  e6 {[%clk 0:02:55]} 8. Bd2 {[%clk 0:02:51]}  Be7 {[%clk 0:02:54]} 9. Be1 {[%clk 0:02:51]}  O-O {[%clk 0:02:54]} 10. Bh4 {[%clk 0:02:50]}  Bh7 {[%clk 0:02:53]} 11. Qc1 {[%clk 0:02:48]}  Nd7 {[%clk 0:02:50]} 12. Bxe7 {[%clk 0:02:48]}  Qxe7 {[%clk 0:02:51]} 13. Nc3 {[%clk 0:02:48]}  d4 {[%clk 0:02:39]} 14. Ne4 {[%clk 0:02:23]}  e5 {[%clk 0:02:26]} 15. fxe5 {[%clk 0:02:14]}  Ndxe5 {[%clk 0:02:23]} 16. exd4 {[%clk 0:02:11]}  Nxf3+ {[%clk 0:02:22]} 17. Bxf3 {[%clk 0:02:10]}  Nxd4 {[%clk 0:02:23]} 18. Nc3 {[%clk 0:01:53]}  Rae8 {[%clk 0:02:11]} 19. Nb5 {[%clk 0:01:39]}  Nxf3+ {[%clk 0:01:31]} 20. Rxf3 {[%clk 0:01:39]}  b6 {[%clk 0:01:30]} 21. Qd2 {[%clk 0:01:35]}  Qd7 {[%clk 0:01:28]} 22. Qc3 {[%clk 0:00:54]}  f6 {[%clk 0:01:24]} 23. Rff1 {[%clk 0:00:51]}  Bg6 {[%clk 0:01:21]} 24. Rae1 {[%clk 0:00:51]}  Bf7 {[%clk 0:01:17]} 25. Rxe8 {[%clk 0:00:51]}  Rxe8 {[%clk 0:01:18]} 26. Re1 {[%clk 0:00:51]}  Rd8 {[%clk 0:01:18]} 27. Re3 {[%clk 0:00:44]}  Bd5 {[%clk 0:01:17]} 28. Qe1 {[%clk 0:00:41]}  Bc6 {[%clk 0:01:09]} 29. Re7 {[%clk 0:00:35]}  Qg4 {[%clk 0:00:58]} 30. Qe2 {[%clk 0:00:28]}  Qf5 {[%clk 0:00:32]} 31. Qe6+ {[%clk 0:00:28]}  Qxe6 {[%clk 0:00:32]} 32. Rxe6 {[%clk 0:00:29]}  Bd5 {[%clk 0:00:23]} 33. Re7 {[%clk 0:00:29]}  a5 {[%clk 0:00:21]} 34. Kf2 {[%clk 0:00:24]}  Kf8 {[%clk 0:00:19]} 35. Rc7 {[%clk 0:00:22]}  Re8 {[%clk 0:00:18]} 36. Nd6 {[%clk 0:00:21]}  Re6 {[%clk 0:00:17]} 37. Nf5 {[%clk 0:00:19]}  Re5 {[%clk 0:00:15]} 38. Ne3 {[%clk 0:00:08]}  Be6 {[%clk 0:00:08]} 39. Rb7 {[%clk 0:00:06]}  Bf7 {[%clk 0:00:03]} 40. Rxb6 {[%clk 0:00:07]}  Be8 {[%clk 0:00:03]} 41. b3 {[%clk 0:00:06]}  f5 {[%clk 0:00:03]} 42. Nc4 {[%clk 0:00:05]}  Re7 {[%clk 0:00:03]} 43. Ra6 {[%clk 0:00:04]}  f4 {[%clk 0:00:04]} 44. Rxa5 {[%clk 0:00:04]}  Rc7 {[%clk 0:00:04]} 45. g3 {[%clk 0:00:03]}  fxg3+ {[%clk 0:00:03]} 46. hxg3 {[%clk 0:00:03]}  g5 {[%clk 0:00:04]} 47. Ra6 {[%clk 0:00:04]}  Kg7 {[%clk 0:00:03]} 48. Rb6 {[%clk 0:00:03]}  Bg6 {[%clk 0:00:02]} 49. a5 {[%clk 0:00:03]}  h5 {[%clk 0:00:02]} 50. a6 {[%clk 0:00:03]}  Kg8 {[%clk 0:00:01]} 51. Rxg6+ {[%clk 0:00:03]}  Kf7 {[%clk 0:00:02]} 52. Rxg5 {[%clk 0:00:03]}  Ra7 {[%clk 0:00:02]} 53. Rxc5 {[%clk 0:00:03]}  Rxa6 {[%clk 0:00:02]} 54. Rxh5 {[%clk 0:00:03]}  Ra2 {[%clk 0:00:02]} 55. Ne3 {[%clk 0:00:04]}  Kg6 {[%clk 0:00:03]} 56. Rc5 {[%clk 0:00:04]}  Ra1 {[%clk 0:00:03]} 57. Kf3 {[%clk 0:00:05]}  Rh1 {[%clk 0:00:04]} 58. Ke4 {[%clk 0:00:05]}  Re1 {[%clk 0:00:04]} 59. b4 {[%clk 0:00:05]}  Rg1 {[%clk 0:00:04]} 60. g4 {[%clk 0:00:04]}  Rb1 {[%clk 0:00:05]} 61. b5 {[%clk 0:00:05]}  Kf6 {[%clk 0:00:06]} 62. c4 {[%clk 0:00:05]}  Ke6 {[%clk 0:00:07]} 63. Rc6+ {[%clk 0:00:06]}  Kd7 {[%clk 0:00:07]} 64. g5 {[%clk 0:00:06]}  Re1 {[%clk 0:00:08]} 65. g6 {[%clk 0:00:06]}  Rg1 {[%clk 0:00:09]} 66. Rf6 {[%clk 0:00:05]}  Ke7 {[%clk 0:00:09]} 67. Nd5+ {[%clk 0:00:06]}  Kd7 {[%clk 0:00:10]} 68. b6 {[%clk 0:00:06]}  Rg4+ {[%clk 0:00:08]} 69. Ke3 {[%clk 0:00:06]}  Kc8 {[%clk 0:00:08]} 70. Rf8+ {[%clk 0:00:05]}  Kb7 {[%clk 0:00:08]} 71. Rf7+ {[%clk 0:00:06]}  Kc6 {[%clk 0:00:08]} 72. Rc7+ {[%clk 0:00:05]}  Kd6 {[%clk 0:00:08]} 73. b7 {[%clk 0:00:06]}  Ke6 {[%clk 0:00:08]} 74. b8=Q {[%clk 0:00:05]}  Rg3+ {[%clk 0:00:09]} 75. Kd2 {[%clk 0:00:05]}  Kf5 {[%clk 0:00:08]} 76. Qf8+ {[%clk 0:00:04]}  Kg4 {[%clk 0:00:09]} 77. Qf4+ {[%clk 0:00:05]}  Kh3 {[%clk 0:00:10]} 78. Rh7+ {[%clk 0:00:05]}  Kg2 {[%clk 0:00:08]} 79. Ne3+ {[%clk 0:00:05]} 1-0


[Site "https://www.chess.com"]

[Event "Titled Tuesday Blitz July 25 Early 2023"]
[White "Bryakin, Mikhail"]
[Black "whiteglovethief"]
[WhiteFideId "4165314"]
[WhiteElo "2718"]
[BlackElo "2480"]
[Result "0-1"]
[Round "10"]
[TimeControl "180+2"]
[Date "2023.07.25"]
[WhiteClock "0:01:55"]
[BlackClock "0:01:02"]
[Board "62"]

1. e4 {[%clk 0:02:59]}  d5 {[%clk 0:02:59]} 2. exd5 {[%clk 0:02:58]}  Qxd5 {[%clk 0:03:00]} 3. Nc3 {[%clk 0:02:58]}  Qa5 {[%clk 0:03:01]} 4. d4 {[%clk 0:02:58]}  Nf6 {[%clk 0:03:01]} 5. Nf3 {[%clk 0:02:58]}  Bg4 {[%clk 0:03:01]} 6. Bc4 {[%clk 0:02:58]}  Nc6 {[%clk 0:03:00]} 7. h3 {[%clk 0:02:58]}  Bh5 {[%clk 0:02:55]} 8. d5 {[%clk 0:02:57]}  O-O-O {[%clk 0:02:54]} 9. O-O {[%clk 0:02:54]}  e6 {[%clk 0:02:47]} 10. Bd2 {[%clk 0:02:37]}  Bxf3 {[%clk 0:02:26]} 11. Qxf3 {[%clk 0:02:36]}  Ne5 {[%clk 0:02:26]} 12. Qe2 {[%clk 0:02:35]}  Nxc4 {[%clk 0:02:25]} 13. Qxc4 {[%clk 0:02:35]}  exd5 {[%clk 0:02:26]} 14. Qe2 {[%clk 0:02:32]}  d4 {[%clk 0:02:23]} 15. Nb5 {[%clk 0:02:30]}  Qb6 {[%clk 0:02:20]} 16. a4 {[%clk 0:02:21]}  a6 {[%clk 0:02:20]} 17. Na3 {[%clk 0:02:21]}  Bxa3 {[%clk 0:02:11]} 18. Rxa3 {[%clk 0:02:22]}  Qxb2 {[%clk 0:02:09]} 19. Qd3 {[%clk 0:02:19]}  Qb6 {[%clk 0:02:04]} 20. Rb3 {[%clk 0:02:19]}  Qc6 {[%clk 0:02:04]} 21. Rfb1 {[%clk 0:02:18]}  Qe4 {[%clk 0:01:31]} 22. Rxb7 {[%clk 0:02:08]}  Qxd3 {[%clk 0:01:30]} 23. cxd3 {[%clk 0:02:08]}  Rhe8 {[%clk 0:01:27]} 24. Ba5 {[%clk 0:02:06]}  Nd5 {[%clk 0:01:24]} 25. Ra7 {[%clk 0:02:06]}  Re6 {[%clk 0:01:21]} 26. Rc1 {[%clk 0:02:04]}  Rd7 {[%clk 0:01:15]} 27. Rc4 {[%clk 0:02:00]}  Kb8 {[%clk 0:01:05]} 28. Bxc7+ {[%clk 0:01:55]}  Kxa7 {[%clk 0:01:02]} 0-1


[Site "https://www.chess.com"]

[Event "Titled Tuesday Blitz July 25 Early 2023"]
[White "Lehtosaari, Mauri"]
[Black "Suyarov, Mukhammadzokhid"]
[WhiteFideId "501999"]
[BlackFideId "14210495"]
[WhiteElo "2485"]
[BlackElo "2717"]
[Result "0-1"]
[Round "10"]
[TimeControl "180+2"]
[Date "2023.07.25"]
[WhiteClock "0:00:06"]
[BlackClock "0:01:44"]
[Board "63"]

1. d4 {[%clk 0:03:00]}  a6 {[%clk 0:02:33]} 2. a4 {[%clk 0:02:58]}  h6 {[%clk 0:02:33]} 3. Nf3 {[%clk 0:02:58]}  d5 {[%clk 0:02:30]} 4. Bf4 {[%clk 0:02:57]}  e6 {[%clk 0:02:30]} 5. h3 {[%clk 0:02:57]}  Bd6 {[%clk 0:02:29]} 6. Bxd6 {[%clk 0:02:57]}  cxd6 {[%clk 0:02:30]} 7. c3 {[%clk 0:02:58]}  Ne7 {[%clk 0:02:30]} 8. e3 {[%clk 0:02:59]}  O-O {[%clk 0:02:30]} 9. Nbd2 {[%clk 0:02:59]}  Nbc6 {[%clk 0:02:31]} 10. g4 {[%clk 0:02:59]}  e5 {[%clk 0:02:32]} 11. g5 {[%clk 0:02:58]}  e4 {[%clk 0:02:32]} 12. Nh2 {[%clk 0:02:48]}  hxg5 {[%clk 0:02:32]} 13. Be2 {[%clk 0:02:47]}  Ng6 {[%clk 0:02:32]} 14. Qc2 {[%clk 0:02:47]}  Nh4 {[%clk 0:02:31]} 15. Bg4 {[%clk 0:02:45]}  f5 {[%clk 0:02:31]} 16. Be2 {[%clk 0:02:45]}  f4 {[%clk 0:02:31]} 17. Bg4 {[%clk 0:02:45]}  Bxg4 {[%clk 0:02:29]} 18. Nxg4 {[%clk 0:02:44]}  b5 {[%clk 0:02:30]} 19. Qb3 {[%clk 0:02:40]}  Ne7 {[%clk 0:02:28]} 20. Nxe4 {[%clk 0:02:38]}  Rf5 {[%clk 0:02:24]} 21. Nd2 {[%clk 0:02:34]}  bxa4 {[%clk 0:02:22]} 22. Rxa4 {[%clk 0:02:33]}  Rb8 {[%clk 0:02:23]} 23. Qa2 {[%clk 0:02:33]}  Qb6 {[%clk 0:02:22]} 24. e4 {[%clk 0:02:27]}  Rf7 {[%clk 0:02:20]} 25. Rxa6 {[%clk 0:02:22]}  Qxb2 {[%clk 0:02:15]} 26. Qxb2 {[%clk 0:02:23]}  Rxb2 {[%clk 0:02:15]} 27. exd5 {[%clk 0:01:54]}  Nxd5 {[%clk 0:02:16]} 28. Rxd6 {[%clk 0:01:04]}  Nxc3 {[%clk 0:02:09]} 29. Ne5 {[%clk 0:00:47]}  Ra7 {[%clk 0:02:08]} 30. O-O {[%clk 0:00:38]}  Rxd2 {[%clk 0:02:00]} 31. Ng4 {[%clk 0:00:31]}  Ne2+ {[%clk 0:01:58]} 32. Kh2 {[%clk 0:00:29]}  Nxd4 {[%clk 0:01:57]} 33. Rb6 {[%clk 0:00:27]}  Ndf3+ {[%clk 0:01:57]} 34. Kh1 {[%clk 0:00:27]}  Rad7 {[%clk 0:01:56]} 35. Rbb1 {[%clk 0:00:25]}  Kh7 {[%clk 0:01:55]} 36. Ra1 {[%clk 0:00:25]}  R2d5 {[%clk 0:01:53]} 37. Rab1 {[%clk 0:00:25]}  Ne5 {[%clk 0:01:53]} 38. Nh2 {[%clk 0:00:21]}  Rd2 {[%clk 0:01:52]} 39. Rb5 {[%clk 0:00:20]}  R7d5 {[%clk 0:01:47]} 40. Rbb1 {[%clk 0:00:18]}  Ra5 {[%clk 0:01:47]} 41. Rbe1 {[%clk 0:00:17]}  Nd3 {[%clk 0:01:48]} 42. Ra1 {[%clk 0:00:11]}  Nxf2+ {[%clk 0:01:47]} 43. Kg1 {[%clk 0:00:12]}  Nxh3+ {[%clk 0:01:48]} 44. Kh1 {[%clk 0:00:12]}  Rxa1 {[%clk 0:01:46]} 45. Rxa1 {[%clk 0:00:13]}  Nf2+ {[%clk 0:01:44]} 46. Kg1 {[%clk 0:00:13]}  g4 {[%clk 0:01:45]} 47. Nf1 {[%clk 0:00:10]}  Re2 {[%clk 0:01:42]} 48. Ra7 {[%clk 0:00:09]}  g3 {[%clk 0:01:42]} 49. Rb7 {[%clk 0:00:07]}  Nh3+ {[%clk 0:01:42]} 50. Kh1 {[%clk 0:00:07]}  Rh2+ {[%clk 0:01:43]} 51. Nxh2 {[%clk 0:00:06]}  g2# {[%clk 0:01:44]} 0-1


[Site "https://www.chess.com"]

[Event "Titled Tuesday Blitz July 25 Early 2023"]
[White "Heinemann, Josefine"]
[Black "NikaVolkov"]
[WhiteFideId "12900460"]
[WhiteElo "2475"]
[BlackElo "2710"]
[Result "0-1"]
[Round "10"]
[TimeControl "180+2"]
[Date "2023.07.25"]
[WhiteClock "0:00:17"]
[BlackClock "0:01:46"]
[Board "64"]

1. e4 {[%clk 0:02:50]}  c5 {[%clk 0:02:58]} 2. c3 {[%clk 0:02:47]}  e6 {[%clk 0:02:59]} 3. d4 {[%clk 0:02:44]}  d5 {[%clk 0:03:00]} 4. exd5 {[%clk 0:02:44]}  exd5 {[%clk 0:03:01]} 5. Bb5+ {[%clk 0:02:43]}  Nc6 {[%clk 0:03:01]} 6. Nf3 {[%clk 0:02:42]}  Nf6 {[%clk 0:03:02]} 7. O-O {[%clk 0:02:42]}  Be7 {[%clk 0:03:03]} 8. dxc5 {[%clk 0:02:39]}  Bxc5 {[%clk 0:03:04]} 9. Re1+ {[%clk 0:02:39]}  Be6 {[%clk 0:03:04]} 10. Be3 {[%clk 0:02:39]}  Bd6 {[%clk 0:03:03]} 11. Nd4 {[%clk 0:02:38]}  Qd7 {[%clk 0:03:04]} 12. Nxe6 {[%clk 0:02:37]}  fxe6 {[%clk 0:03:04]} 13. c4 {[%clk 0:02:36]}  O-O {[%clk 0:03:04]} 14. cxd5 {[%clk 0:02:36]}  Nxd5 {[%clk 0:03:05]} 15. Nc3 {[%clk 0:02:32]}  Nxc3 {[%clk 0:03:03]} 16. bxc3 {[%clk 0:02:31]}  Qc7 {[%clk 0:03:02]} 17. h3 {[%clk 0:02:29]}  Kh8 {[%clk 0:03:03]} 18. Qg4 {[%clk 0:02:27]}  Rf5 {[%clk 0:02:57]} 19. Ba4 {[%clk 0:02:01]}  Ne5 {[%clk 0:02:49]} 20. Qe2 {[%clk 0:02:00]}  Qxc3 {[%clk 0:02:41]} 21. Bb3 {[%clk 0:01:51]}  Nd3 {[%clk 0:02:18]} 22. Red1 {[%clk 0:01:37]}  Nxf2 {[%clk 0:02:19]} 23. Bd4 {[%clk 0:00:45]}  Nxh3+ {[%clk 0:01:58]} 24. gxh3 {[%clk 0:00:33]}  Rg5+ {[%clk 0:01:57]} 25. Kf1 {[%clk 0:00:29]}  Rf8+ {[%clk 0:01:52]} 26. Bf2 {[%clk 0:00:28]}  Qxh3+ {[%clk 0:01:46]} 27. Ke1 {[%clk 0:00:26]}  Bb4+ {[%clk 0:01:46]} 28. Rd2 {[%clk 0:00:25]}  Qh1+ {[%clk 0:01:46]} 29. Qf1 {[%clk 0:00:17]}  Re5+ {[%clk 0:01:46]} 0-1


[Site "https://www.chess.com"]

[Event "Titled Tuesday Blitz July 25 Early 2023"]
[White "ExchangeAB"]
[Black "Gubajdullin, Alexei"]
[BlackFideId "4141202"]
[WhiteElo "2465"]
[BlackElo "2686"]
[Result "0-1"]
[Round "10"]
[TimeControl "180+2"]
[Date "2023.07.25"]
[WhiteClock "0:00:01"]
[BlackClock "0:00:42"]
[Board "68"]

1. d4 {[%clk 0:03:00]}  Nf6 {[%clk 0:02:51]} 2. Nc3 {[%clk 0:03:00]}  d5 {[%clk 0:02:51]} 3. Bf4 {[%clk 0:03:00]}  Nbd7 {[%clk 0:02:51]} 4. Nb5 {[%clk 0:02:54]}  e5 {[%clk 0:02:48]} 5. dxe5 {[%clk 0:02:53]}  Nh5 {[%clk 0:02:48]} 6. Bg3 {[%clk 0:02:38]}  Nxg3 {[%clk 0:02:46]} 7. hxg3 {[%clk 0:02:39]}  Nxe5 {[%clk 0:02:46]} 8. Qxd5 {[%clk 0:02:34]}  Qe7 {[%clk 0:02:38]} 9. Qb3 {[%clk 0:02:20]}  a6 {[%clk 0:02:30]} 10. Nd4 {[%clk 0:02:11]}  c5 {[%clk 0:02:30]} 11. Ndf3 {[%clk 0:02:04]}  c4 {[%clk 0:02:30]} 12. Qe3 {[%clk 0:02:00]}  Nxf3+ {[%clk 0:02:30]} 13. Nxf3 {[%clk 0:01:54]}  Qxe3 {[%clk 0:02:29]} 14. fxe3 {[%clk 0:01:53]}  Bc5 {[%clk 0:02:28]} 15. Nd4 {[%clk 0:01:52]}  Bg4 {[%clk 0:02:25]} 16. c3 {[%clk 0:01:45]}  O-O-O {[%clk 0:02:24]} 17. e4 {[%clk 0:01:16]}  h5 {[%clk 0:02:23]} 18. e3 {[%clk 0:01:13]}  Rhe8 {[%clk 0:02:20]} 19. Bxc4 {[%clk 0:01:13]}  Rxe4 {[%clk 0:02:19]} 20. Kd2 {[%clk 0:01:13]}  f6 {[%clk 0:02:14]} 21. Bd3 {[%clk 0:01:12]}  Re5 {[%clk 0:02:14]} 22. Rhf1 {[%clk 0:01:06]}  Rde8 {[%clk 0:02:13]} 23. Rae1 {[%clk 0:01:06]}  Bd6 {[%clk 0:02:11]} 24. Bf5+ {[%clk 0:01:05]}  Bxf5 {[%clk 0:02:08]} 25. Nxf5 {[%clk 0:01:03]}  Rd5+ {[%clk 0:02:07]} 26. Kc2 {[%clk 0:01:01]}  Bf8 {[%clk 0:02:06]} 27. Nd4 {[%clk 0:01:00]}  Rg5 {[%clk 0:02:05]} 28. Rf3 {[%clk 0:00:56]}  Re4 {[%clk 0:02:05]} 29. Rh1 {[%clk 0:00:53]}  Kd7 {[%clk 0:01:57]} 30. Kd3 {[%clk 0:00:51]}  Reg4 {[%clk 0:01:56]} 31. Rh3 {[%clk 0:00:49]}  Bd6 {[%clk 0:01:52]} 32. Nf5 {[%clk 0:00:49]}  Be5 {[%clk 0:01:52]} 33. e4 {[%clk 0:00:49]}  g6 {[%clk 0:01:51]} 34. Ne3 {[%clk 0:00:42]}  Rxg3 {[%clk 0:01:51]} 35. Rhxg3 {[%clk 0:00:42]}  Rxg3 {[%clk 0:01:51]} 36. Rxg3 {[%clk 0:00:42]}  Bxg3 {[%clk 0:01:50]} 37. Nd5 {[%clk 0:00:37]}  Ke6 {[%clk 0:01:48]} 38. Ke3 {[%clk 0:00:31]}  f5 {[%clk 0:01:45]} 39. Nb4 {[%clk 0:00:28]}  g5 {[%clk 0:01:42]} 40. Nd3 {[%clk 0:00:26]}  g4 {[%clk 0:01:41]} 41. exf5+ {[%clk 0:00:23]}  Kxf5 {[%clk 0:01:41]} 42. Nc5 {[%clk 0:00:22]}  b5 {[%clk 0:01:02]} 43. Nxa6 {[%clk 0:00:21]}  Bd6 {[%clk 0:01:01]} 44. Kf2 {[%clk 0:00:20]}  h4 {[%clk 0:01:00]} 45. Nb4 {[%clk 0:00:16]}  Ke4 {[%clk 0:00:59]} 46. Nc6 {[%clk 0:00:15]}  Bc5+ {[%clk 0:00:58]} 47. Kf1 {[%clk 0:00:15]}  h3 {[%clk 0:00:57]} 48. gxh3 {[%clk 0:00:16]}  gxh3 {[%clk 0:00:57]} 49. Nd4 {[%clk 0:00:15]}  Bxd4 {[%clk 0:00:50]} 50. cxd4 {[%clk 0:00:16]}  Kxd4 {[%clk 0:00:50]} 51. a3 {[%clk 0:00:04]}  Kc4 {[%clk 0:00:50]} 52. Kg1 {[%clk 0:00:03]}  Kb3 {[%clk 0:00:47]} 53. Kh2 {[%clk 0:00:02]}  Kxb2 {[%clk 0:00:46]} 54. a4 {[%clk 0:00:01]}  bxa4 {[%clk 0:00:42]} 0-1


[Site "https://www.chess.com"]

[Event "Titled Tuesday Blitz July 25 Early 2023"]
[White "Rangel, Daniel"]
[Black "Goryachkina, Aleksandra"]
[WhiteFideId "2124475"]
[BlackFideId "4147103"]
[WhiteElo "2445"]
[BlackElo "2622"]
[Result "0-1"]
[Round "10"]
[TimeControl "180+2"]
[Date "2023.07.25"]
[WhiteClock "0:00:01"]
[BlackClock "0:00:20"]
[Board "72"]

1. d4 {[%clk 0:02:56]}  Nf6 {[%clk 0:02:59]} 2. Nf3 {[%clk 0:02:56]}  d5 {[%clk 0:02:59]} 3. e3 {[%clk 0:02:56]}  Bf5 {[%clk 0:02:56]} 4. Bd3 {[%clk 0:02:52]}  e6 {[%clk 0:02:55]} 5. O-O {[%clk 0:02:51]}  Bd6 {[%clk 0:02:53]} 6. b3 {[%clk 0:02:50]}  O-O {[%clk 0:02:52]} 7. a3 {[%clk 0:02:47]}  Ne4 {[%clk 0:02:48]} 8. Bb2 {[%clk 0:02:44]}  Nd7 {[%clk 0:02:48]} 9. Nbd2 {[%clk 0:02:41]}  c6 {[%clk 0:02:46]} 10. Ne5 {[%clk 0:02:22]}  Qc7 {[%clk 0:02:45]} 11. f4 {[%clk 0:02:15]}  Bxe5 {[%clk 0:02:36]} 12. fxe5 {[%clk 0:02:14]}  Nxd2 {[%clk 0:02:36]} 13. Qxd2 {[%clk 0:02:13]}  Bxd3 {[%clk 0:02:33]} 14. Qxd3 {[%clk 0:02:14]}  f6 {[%clk 0:02:33]} 15. e4 {[%clk 0:01:36]}  fxe5 {[%clk 0:02:32]} 16. dxe5 {[%clk 0:01:31]}  Nc5 {[%clk 0:02:31]} 17. Qh3 {[%clk 0:01:15]}  Qe7 {[%clk 0:02:16]} 18. exd5 {[%clk 0:01:11]}  cxd5 {[%clk 0:02:16]} 19. Bc3 {[%clk 0:00:50]}  Rxf1+ {[%clk 0:01:55]} 20. Rxf1 {[%clk 0:00:51]}  a5 {[%clk 0:01:55]} 21. Bd4 {[%clk 0:00:37]}  Ne4 {[%clk 0:01:53]} 22. c4 {[%clk 0:00:30]}  dxc4 {[%clk 0:01:43]} 23. bxc4 {[%clk 0:00:23]}  Rd8 {[%clk 0:01:42]} 24. Qe3 {[%clk 0:00:18]}  Qh4 {[%clk 0:00:58]} 25. g3 {[%clk 0:00:10]}  Qg4 {[%clk 0:00:56]} 26. Bb6 {[%clk 0:00:07]}  Rd2 {[%clk 0:00:43]} 27. Bxa5 {[%clk 0:00:06]}  Ra2 {[%clk 0:00:32]} 28. Bb4 {[%clk 0:00:06]}  h6 {[%clk 0:00:30]} 29. Qf4 {[%clk 0:00:05]}  Qe2 {[%clk 0:00:21]} 30. Qf7+ {[%clk 0:00:03]}  Kh7 {[%clk 0:00:20]} 31. Qf3 {[%clk 0:00:01]}  Qxh2# {[%clk 0:00:20]} 0-1


[Site "https://www.chess.com"]